fUST/lending_fUST_20240901
["ID","MTS","AMOUNT","RATE_DAILY","PERIOD"]
[336830832,1725196907306,-717.46,0.00028219,15]
[336830833,1725196907353,-500.0,0.00028219,15]
[336830834,1725196907403,-500.0,0.00028219,15]
[336830835,1725196907450,-500.0,0.00028219,15]
[336830836,1725196907497,-1526.8,0.00028219,15]
[336830837,1725196907546,-500.0,0.00028219,15]
[336830838,1725196907599,-500.0,0.00028219,15]
[336830839,1725196907651,-500.0,0.00028219,15]
[336830840,1725196907704,-500.0,0.00028219,15]
[336830841,1725196907752,-500.0,0.00028219,15]
[336830842,1725196907800,-500.0,0.00028219,15]
[336830843,1725196907847,-547.06,0.00028219,15]
[336830844,1725196907898,-500.0,0.00028493,15]
[336830845,1725196907945,-613.39,0.00028493,15]
[336830846,1725196907992,-500.0,0.00028493,15]
[336830847,1725196908041,-500.0,0.00028493,15]
[336830848,1725196908092,-500.0,0.00028493,15]
[336830849,1725196908140,-662.37,0.00028493,15]
[336830850,1725196908191,-545.72051445,0.00028493,15]
[336830851,1725196908241,-500.0,0.00028493,15]
[336830852,1725196908290,-551.14,0.00028493,15]
[336830853,1725196908339,-500.0,0.00028493,15]
[336830854,1725196908396,-630.21,0.00028493,15]
[336830855,1725196908446,-500.0,0.00028493,15]
[336830856,1725196908497,-500.0,0.00028493,15]
[336830857,1725196908547,-151.0,0.00028493,7]
[336830858,1725196908597,-151.0,0.00028493,7]
[336830859,1725196908646,-546.32,0.00028493,15]
[336830860,1725196908696,-560.51,0.00028493,15]
[336830861,1725196908744,-600.36,0.00028493,15]
[336830862,1725196908793,-151.0,0.00028493,7]
[336830863,1725196908840,-151.0,0.00028493,7]
[336830864,1725196908887,-151.0,0.00028493,7]
[336830865,1725196908934,-151.0,0.00028493,7]
[336830866,1725196908983,-1645.96,0.00028493,15]
[336830867,1725196909031,-151.0,0.00028493,7]
[336830868,1725196909079,-266.08469,0.00028493,7]
[336830869,1725196909127,-151.0,0.00028493,7]
[336830870,1725196909173,-849.07,0.00028493,15]
[336830871,1725196909219,-1297.563191,0.00028493,7]
[336830872,1725196909266,-1297.563191,0.00028493,7]
[336830873,1725196909313,-884.99,0.00028493,15]
[336830874,1725196909363,-500.0,0.00028493,15]
[336830875,1725196909411,-151.0,0.00028493,7]
[336830876,1725196909459,-500.0,0.00028493,15]
[336830877,1725196909508,-151.0,0.00028493,7]
[336830878,1725196909559,-573.6,0.00028493,15]
[336830879,1725196909606,-551.11,0.00028493,15]
[336830880,1725196909658,-151.0,0.00028493,7]
[336830881,1725196909707,-151.0,0.00028493,7]
[336830882,1725196909756,-500.0,0.00028493,15]
[336830883,1725196909808,-1020.74,0.00028493,15]
[336830884,1725196909856,-500.0,0.00028493,15]
[336830885,1725196909907,-151.0,0.00028493,7]
[336830886,1725196909962,-582.846772,0.00028493,7]
[336830887,1725196910008,-500.0,0.00028493,15]
[336830888,1725196910056,-582.846772,0.00028493,7]
[336830889,1725196910258,-151.0,0.00028493,7]
[336830890,1725196910308,-500.0,0.00028493,15]
[336830891,1725196910356,-500.0,0.00028493,15]
[336830892,1725196910408,-668.67,0.00028493,15]
[336830893,1725196910459,-500.0,0.00028493,15]
[336830894,1725196910509,-622.09,0.00028493,15]
[336830895,1725196910557,-926.65,0.00028493,15]
[336830896,1725196910603,-562.47,0.00028493,15]
[336830897,1725196910650,-500.0,0.00028493,15]
[336830898,1725196910696,-745.52,0.00028493,15]
[336830899,1725196910747,-1327.03,0.00028493,15]
[336830900,1725196910796,-175.12722266,0.00028493,15]
[336830901,1725196910844,-500.0,0.00028493,15]
[336830902,1725196910891,-500.0,0.00028493,15]
[336830903,1725196910937,-686.57,0.00028493,15]
[336830904,1725196910984,-500.0,0.00028493,15]
[336830905,1725196911029,-500.0,0.00028493,15]
[336830906,1725196911075,-228.51682859,0.00028493,15]
[336830907,1725196911123,-1319.97,0.00028493,15]
[336830908,1725196911172,-520.01,0.00028493,15]
[336830909,1725196911223,-281.895372,0.00028493,7]
[336830910,1725196911274,-599.98,0.00028493,15]
[336830911,1725196911322,-281.895372,0.00028493,7]
[336830912,1725196911368,-736.2,0.00028493,14]
[336830913,1725196911415,-2723.9,0.00028493,15]
[336830914,1725196911465,-1308.37,0.00028493,15]
[336830915,1725196911519,-500.0,0.00028493,15]
[336830916,1725196911575,-1462.49,0.00028493,15]
[336830917,1725196911630,-500.0,0.00028493,15]
[336830918,1725196911679,-738.7,0.00028493,15]
[336830919,1725196911729,-500.0,0.00028493,15]
[336830920,1725196911778,-500.0,0.00028493,15]
[336830921,1725196911826,-306.708187,0.00028493,7]
[336830922,1725196911880,-500.0,0.00028493,7]
[336830923,1725196911930,-435.356635,0.00028493,7]
[336830924,1725196911980,-646.540324,0.00028493,7]
[336830925,1725196912027,-306.708187,0.00028493,7]
[336830926,1725196912076,-435.356635,0.00028493,7]
[336830927,1725196912122,-646.540324,0.00028493,7]
[336830928,1725196912172,-1947.93,0.00028493,15]
[336830929,1725196912219,-654.52,0.00028493,15]
[336830930,1725196912267,-1081.1,0.00028493,15]
[336830931,1725196912316,-1433.05,0.00028493,15]
[336830932,1725196912365,-2532.21,0.00028493,15]
[336830933,1725196912414,-500.0,0.00028493,15]
[336830934,1725196912465,-11724.87,0.00028493,8]
[336830935,1725196912513,-500.0,0.00028493,15]
[336830936,1725196912563,-802.07,0.00028493,15]
[336830937,1725196912615,-2462.33,0.00028493,15]
[336830938,1725196912666,-648.27,0.00028493,15]
[336830939,1725196912719,-500.0,0.00028493,15]
[336830940,1725196912769,-776.95,0.00028493,15]
[336830941,1725196912819,-1178.34,0.00028493,15]
[336830942,1725196912865,-1392.7,0.00028493,15]
[336830943,1725196912919,-2171.76,0.00028493,15]
[336830944,1725196912963,-507.68,0.00028493,15]
[336830945,1725196913015,-593.14,0.00028493,15]
[336830946,1725196913063,-950.08,0.00028493,15]
[336830947,1725196913112,-500.0,0.00028493,15]
[336830948,1725196913162,-2805.62,0.00028493,15]
[336830949,1725196913212,-1101.57,0.00028493,15]
[336830950,1725196913263,-717.46,0.00028493,15]
[336830951,1725196913314,-483.35448265,0.00028493,15]
[336830952,1725196913365,-500.0,0.00028493,15]
[336830953,1725196913410,-500.0,0.00028493,15]
[336830954,1725196913460,-1526.8,0.00028493,15]
[336830955,1725196913507,-500.0,0.00028493,15]
[336830956,1725196913553,-500.0,0.00028493,15]
[336830957,1725196913598,-500.0,0.00028493,15]
[336830958,1725196913643,-500.0,0.00028493,15]
[336830959,1725196913688,-500.0,0.00028493,15]
[336830960,1725196913734,-500.0,0.00028493,15]
[336830961,1725196913780,-108.38258412,0.00028493,15]
[336830965,1725196943182,-5959.43576393,0.00024647,11]
[336830966,1725196943243,-774.55,0.000247,7]
[336830967,1725196943305,-151.0,0.00025205,7]
[336830968,1725196943381,-774.55,0.000268,7]
[336830969,1725196943440,-151.0,0.00027397,7]
[336830970,1725196943491,-156.941384,0.00027397,7]
[336830971,1725196943546,-156.941384,0.00027397,7]
[336830972,1725196943598,-285.585036,0.00027397,7]
[336830973,1725196943644,-156.941384,0.00027397,7]
[336830974,1725196943695,-285.585036,0.00027397,7]
[336830975,1725196943741,-156.941384,0.00027397,7]
[336830976,1725196943787,-151.0,0.00027397,7]
[336830977,1725196943833,-285.585036,0.00027397,7]
[336830978,1725196943882,-156.941384,0.00027397,7]
[336830979,1725196943935,-151.0,0.00027397,7]
[336830980,1725196943983,-285.585036,0.00027397,7]
[336830981,1725196944031,-151.0,0.00027397,7]
[336830982,1725196944078,-285.585036,0.00027397,7]
[336830983,1725196944126,-156.941384,0.00027397,7]
[336830984,1725196944171,-156.941384,0.00027397,7]
[336830985,1725196944214,-151.0,0.00027397,7]
[336830986,1725196944260,-156.941384,0.00027397,7]
[336830987,1725196944306,-285.585036,0.00027397,7]
[336830988,1725196944352,-156.941384,0.00027397,7]
[336830989,1725196944396,-151.0,0.00027397,7]
[336830990,1725196944444,-285.585036,0.00027397,7]
[336830991,1725196944489,-151.0,0.00027397,7]
[336830992,1725196944536,-156.941384,0.00027397,7]
[336830993,1725196944584,-285.585036,0.00027397,7]
[336830994,1725196944630,-151.0,0.00027397,7]
[336830995,1725196944682,-285.585036,0.00027397,7]
[336830996,1725196944733,-151.0,0.00027397,7]
[336830997,1725196944782,-285.585036,0.00027397,7]
[336830998,1725196944829,-151.0,0.00027397,7]
[336830999,1725196944876,-151.0,0.00027397,7]
[336831000,1725196944928,-151.0,0.00027397,7]
[336831001,1725196944975,-151.0,0.00027397,7]
[336831002,1725196945022,-151.0,0.00027397,7]
[336831003,1725196945071,-151.0,0.00027397,7]
[336831004,1725196945117,-151.0,0.00027397,7]
[336831005,1725196945167,-151.0,0.00027397,7]
[336831006,1725196945214,-151.0,0.00027397,7]
[336831007,1725196945261,-151.0,0.00027397,7]
[336831008,1725196945306,-151.0,0.00027397,7]
[336831009,1725196945351,-151.0,0.00027397,7]
[336831010,1725196945397,-151.0,0.00027397,7]
[336831011,1725196945447,-151.0,0.00027397,7]
[336831012,1725196945494,-151.0,0.00027397,7]
[336831013,1725196945541,-151.0,0.00027397,7]
[336831014,1725196945589,-151.0,0.00027397,7]
[336831015,1725196945636,-151.0,0.00027397,7]
[336831016,1725196945681,-151.0,0.00027397,7]
[336831017,1725196945727,-151.0,0.00027397,7]
[336831018,1725196945773,-9446.63,0.00027671,15]
[336831019,1725196945820,-6672.92,0.00027671,15]
[336831020,1725196945868,-500.0,0.00027671,15]
[336831021,1725196945918,-1623.27,0.00027671,15]
[336831022,1725196945966,-545.44,0.00027671,15]
[336831023,1725196946015,-9446.63,0.00027945,15]
[336831024,1725196946067,-6672.92,0.00027945,15]
[336831025,1725196946114,-500.0,0.00027945,15]
[336831026,1725196946162,-156.941384,0.00027945,7]
[336831027,1725196946208,-285.585036,0.00027945,7]
[336831028,1725196946255,-156.941384,0.00027945,7]
[336831029,1725196946303,-157.650116,0.00027945,7]
[336831030,1725196946349,-285.585036,0.00027945,7]
[336831031,1725196946397,-151.0,0.00027945,7]
[336831032,1725196946447,-1623.27,0.00027945,15]
[336831033,1725196946494,-151.0,0.00027945,7]
[336831034,1725196946545,-151.0,0.00027945,7]
[336831035,1725196946598,-151.0,0.00027945,7]
[336831036,1725196946816,-545.44,0.00027945,15]
[336831037,1725196946864,-9446.63,0.00028219,15]
[336831038,1725196946913,-6672.92,0.00028219,15]
[336831039,1725196946971,-500.0,0.00028219,15]
[336831040,1725196947019,-1623.27,0.00028219,15]
[336831041,1725196947070,-545.44,0.00028219,15]
[336831042,1725196947116,-438.67741588,0.00028493,15]
[336831043,1725196947162,-9446.63,0.00028493,15]
[336831044,1725196947208,-6672.92,0.00028493,15]
[336831045,1725196947255,-500.0,0.00028493,15]
[336831046,1725196947302,-156.941384,0.00028493,7]
[336831047,1725196947346,-285.585036,0.00028493,7]
[336831048,1725196947392,-156.941384,0.00028493,7]
[336831049,1725196947437,-285.585036,0.00028493,7]
[336831050,1725196947484,-1623.27,0.00028493,15]
[336831051,1725196947532,-151.0,0.00028493,7]
[336831052,1725196947579,-151.0,0.00028493,7]
[336831053,1725196947625,-545.44,0.00028493,15]
[336831054,1725196947671,-155.0,0.0002869,20]
[336831055,1725196947718,-500.0,0.00028767,15]
[336831056,1725196947765,-500.0,0.00028767,15]
[336831057,1725196947809,-662.37,0.00028767,15]
[336831058,1725196947855,-254.16338651,0.00028767,15]
[336831059,1725196947903,-551.14,0.00028767,15]
[336831060,1725196947949,-500.0,0.00028767,15]
[336831061,1725196947994,-630.21,0.00028767,15]
[336831062,1725196948036,-500.0,0.00028767,15]
[336831063,1725196948083,-151.0,0.00028767,7]
[336831064,1725196948127,-151.0,0.00028767,7]
[336831065,1725196948175,-151.0,0.00028767,7]
[336831066,1725196948219,-152.36822,0.00028767,7]
[336831067,1725196948265,-546.32,0.00028767,15]
[336831068,1725196948308,-151.0,0.00028767,7]
[336831069,1725196948351,-560.51,0.00028767,15]
[336831070,1725196948393,-600.36,0.00028767,15]
[336831071,1725196948435,-1645.96,0.00028767,15]
[336831072,1725196948475,-151.0,0.00028767,7]
[336831073,1725196948519,-500.0,0.00028767,7]
[336831074,1725196948562,-500.0,0.00028767,7]
[336831075,1725196948605,-849.07,0.00028767,15]
[336831076,1725196948649,-884.99,0.00028767,15]
[336831077,1725196948693,-500.0,0.00028767,15]
[336831078,1725196948738,-500.0,0.00028767,15]
[336831079,1725196948782,-573.6,0.00028767,15]
[336831080,1725196948823,-551.11,0.00028767,15]
[336831081,1725196948867,-500.0,0.00028767,15]
[336831082,1725196948912,-1020.74,0.00028767,15]
[336831083,1725196948955,-500.0,0.00028767,15]
[336831084,1725196948999,-271.15575373,0.00028767,15]
[336831085,1725196949042,-500.0,0.00028767,15]
[336831086,1725196949085,-500.0,0.00028767,15]
[336831087,1725196949129,-668.67,0.00028767,15]
[336831088,1725196949172,-500.0,0.00028767,15]
[336831089,1725196949214,-622.09,0.00028767,15]
[336831090,1725196949258,-926.65,0.00028767,15]
[336831091,1725196949301,-562.47,0.00028767,15]
[336831092,1725196949343,-219.35047916,0.00028767,15]
[336831093,1725196949385,-151.0,0.00028767,7]
[336831094,1725196949426,-686.57,0.00028767,15]
[336831095,1725196949470,-500.0,0.00028767,15]
[336831096,1725196949516,-520.01,0.00028767,15]
[336831097,1725196949559,-736.2,0.00028767,14]
[336831098,1725196949601,-500.0,0.00028767,15]
[336831099,1725196949643,-500.0,0.00028767,15]
[336831100,1725196949687,-500.0,0.00028767,7]
[336831101,1725196949729,-1081.1,0.00028767,15]
[336831102,1725196949772,-1433.05,0.00028767,15]
[336831103,1725196949813,-2532.21,0.00028767,15]
[336831104,1725196949855,-450.77883967,0.00028767,15]
[336831105,1725196949901,-11724.87,0.00028767,8]
[336831106,1725196949945,-500.0,0.00028767,15]
[336831107,1725196949990,-802.07,0.00028767,15]
[336831108,1725196950035,-2462.33,0.00028767,15]
[336831109,1725196950080,-648.27,0.00028767,15]
[336831110,1725196950123,-500.0,0.00028767,15]
[336831111,1725196950172,-776.95,0.00028767,15]
[336831112,1725196950218,-1178.34,0.00028767,15]
[336831113,1725196950263,-1392.7,0.00028767,15]
[336831114,1725196950311,-2171.76,0.00028767,15]
[336831115,1725196950353,-507.68,0.00028767,15]
[336831116,1725196950397,-593.14,0.00028767,15]
[336831117,1725196950441,-950.08,0.00028767,15]
[336831118,1725196950486,-500.0,0.00028767,15]
[336831119,1725196950531,-2805.62,0.00028767,15]
[336831120,1725196950574,-1101.57,0.00028767,15]
[336831121,1725196950617,-717.46,0.00028767,15]
[336831122,1725196950660,-151.0,0.00028767,7]
[336831123,1725196950704,-558.86331003,0.00028767,15]
[336831124,1725196950747,-500.0,0.00028767,15]
[336831125,1725196950788,-151.0,0.00028767,7]
[336831126,1725196950830,-1526.8,0.00028767,15]
[336831127,1725196950874,-309.183729,0.00028767,7]
[336831128,1725196950933,-500.0,0.00028767,15]
[336831129,1725196950977,-309.183729,0.00028767,7]
[336831130,1725196951019,-500.0,0.00028767,15]
[336831131,1725196951059,-500.0,0.00028767,15]
[336831132,1725196951101,-500.0,0.00028767,15]
[336831133,1725196951144,-274.75499134,0.00028767,15]
[336831134,1725196951189,-374.07576602,0.00028767,15]
[336831135,1725196951232,-547.06,0.00028767,15]
[336831136,1725196951274,-9446.63,0.00028767,15]
[336831137,1725196951317,-6672.92,0.00028767,15]
[336831138,1725196951360,-501.00239264,0.00028767,15]
[336831139,1725196951548,-151.0,0.00028767,7]
[336831140,1725196951596,-1623.27,0.00028767,15]
[336831141,1725196951643,-190.815619,0.00028767,7]
[336831142,1725196951689,-545.44,0.00028767,15]
[336831143,1725196951735,-774.55,0.000288,7]
[336831144,1725196951781,-1000.0,0.00029,29]
[336831145,1725196951827,-951.59,0.00029,14]
[336831146,1725196951872,-7292.0,0.00029,14]
[336831147,1725196951919,-500.0,0.00029041,15]
[336831148,1725196951962,-500.0,0.00029041,15]
[336831149,1725196952011,-662.37,0.00029041,15]
[336831150,1725196952054,-551.14,0.00029041,15]
[336831151,1725196952097,-500.0,0.00029041,15]
[336831152,1725196952139,-630.21,0.00029041,15]
[336831153,1725196952183,-500.0,0.00029041,15]
[336831154,1725196952226,-151.0,0.00029041,7]
[336831155,1725196952270,-151.0,0.00029041,7]
[336831156,1725196952314,-546.32,0.00029041,15]
[336831157,1725196952357,-560.51,0.00029041,15]
[336831158,1725196952399,-600.36,0.00029041,15]
[336831159,1725196952445,-151.934486,0.00029041,7]
[336831160,1725196952500,-151.0,0.00029041,7]
[336831161,1725196952547,-151.0,0.00029041,7]
[336831162,1725196952597,-202.481958,0.00029041,7]
[336831163,1725196952646,-1645.96,0.00029041,15]
[336831164,1725196952695,-151.0,0.00029041,7]
[336831165,1725196952742,-151.0,0.00029041,7]
[336831166,1725196952790,-849.07,0.00029041,15]
[336831167,1725196952836,-1297.563191,0.00029041,7]
[336831168,1725196952882,-1297.563191,0.00029041,7]
[336831169,1725196952935,-884.99,0.00029041,15]
[336831170,1725196952982,-500.0,0.00029041,15]
[336831171,1725196953030,-500.0,0.00029041,15]
[336831172,1725196953076,-573.6,0.00029041,15]
[336831173,1725196953123,-551.11,0.00029041,15]
[336831174,1725196953169,-151.0,0.00029041,7]
[336831175,1725196953214,-500.0,0.00029041,15]
[336831176,1725196953262,-1020.74,0.00029041,15]
[336831177,1725196953309,-500.0,0.00029041,15]
[336831178,1725196953354,-151.0,0.00029041,7]
[336831179,1725196953402,-151.0,0.00029041,7]
[336831180,1725196953456,-500.0,0.00029041,15]
[336831181,1725196953508,-500.0,0.00029041,15]
[336831182,1725196953557,-668.67,0.00029041,15]
[336831183,1725196953605,-500.0,0.00029041,15]
[336831184,1725196953653,-622.09,0.00029041,15]
[336831185,1725196953700,-926.65,0.00029041,15]
[336831186,1725196953748,-562.47,0.00029041,15]
[336831187,1725196953795,-686.57,0.00029041,15]
[336831188,1725196953842,-508.96902194,0.00029041,15]
[336831189,1725196953891,-520.01,0.00029041,15]
[336831190,1725196953936,-736.2,0.00029041,14]
[336831191,1725196953982,-500.0,0.00029041,15]
[336831192,1725196954026,-500.0,0.00029041,15]
[336831193,1725196954071,-500.0,0.00029041,7]
[336831194,1725196954116,-1081.1,0.00029041,15]
[336831195,1725196954163,-1433.05,0.00029041,15]
[336831196,1725196954209,-2532.21,0.00029041,15]
[336831197,1725196954255,-305.187274,0.00029041,7]
[336831198,1725196954304,-305.187274,0.00029041,7]
[336831199,1725196954354,-11724.87,0.00029041,8]
[336831200,1725196954401,-500.0,0.00029041,15]
[336831201,1725196954446,-802.07,0.00029041,15]
[336831202,1725196954491,-2462.33,0.00029041,15]
[336831203,1725196954537,-648.27,0.00029041,15]
[336831204,1725196954582,-500.0,0.00029041,15]
[336831205,1725196954630,-776.95,0.00029041,15]
[336831206,1725196954676,-1178.34,0.00029041,15]
[336831207,1725196954717,-1392.7,0.00029041,15]
[336831208,1725196954759,-744.954247,0.00029041,7]
[336831209,1725196954800,-744.954247,0.00029041,7]
[336831210,1725196954845,-2171.76,0.00029041,15]
[336831211,1725196954893,-507.68,0.00029041,15]
[336831212,1725196954935,-593.14,0.00029041,15]
[336831213,1725196954978,-950.08,0.00029041,15]
[336831214,1725196955022,-500.0,0.00029041,15]
[336831215,1725196955064,-2878.63588,0.00029041,7]
[336831216,1725196955108,-2805.62,0.00029041,15]
[336831217,1725196955166,-2878.63588,0.00029041,7]
[336831218,1725196955212,-1101.57,0.00029041,15]
[336831219,1725196955256,-717.46,0.00029041,15]
[336831220,1725196955299,-446.56775785,0.00029041,15]
[336831221,1725196955342,-1526.8,0.00029041,15]
[336831222,1725196955385,-500.0,0.00029041,15]
[336831223,1725196955428,-500.0,0.00029041,15]
[336831224,1725196955470,-500.0,0.00029041,15]
[336831225,1725196955511,-500.0,0.00029041,15]
[336831226,1725196955554,-547.06,0.00029041,15]
[336831227,1725196955596,-9446.63,0.00029041,15]
[336831228,1725196955642,-6672.92,0.00029041,15]
[336831229,1725196955686,-156.941384,0.00029041,7]
[336831230,1725196955728,-285.585036,0.00029041,7]
[336831231,1725196955770,-156.941384,0.00029041,7]
[336831232,1725196955813,-285.585036,0.00029041,7]
[336831233,1725196955856,-1623.27,0.00029041,15]
[336831234,1725196955899,-152.862149,0.00029041,7]
[336831235,1725196955942,-151.0,0.00029041,7]
[336831236,1725196955985,-545.44,0.00029041,15]
[336831237,1725196956028,-500.0,0.00029315,15]
[336831238,1725196956070,-500.0,0.00029315,15]
[336831239,1725196956112,-662.37,0.00029315,15]
[336831240,1725196956153,-551.14,0.00029315,15]
[336831241,1725196956195,-500.0,0.00029315,15]
[336831242,1725196956428,-630.21,0.00029315,15]
[336831243,1725196956474,-500.0,0.00029315,15]
[336831244,1725196956515,-198.414131,0.00029315,7]
[336831245,1725196956556,-546.32,0.00029315,15]
[336831246,1725196956599,-151.0,0.00029315,7]
[336831247,1725196956643,-560.51,0.00029315,15]
[336831248,1725196956687,-600.36,0.00029315,15]
[336831249,1725196956726,-1645.96,0.00029315,15]
[336831250,1725196956765,-849.07,0.00029315,15]
[336831251,1725196956804,-884.99,0.00029315,15]
[336831252,1725196956845,-500.0,0.00029315,15]
[336831253,1725196956890,-500.0,0.00029315,15]
[336831254,1725196956932,-573.6,0.00029315,15]
[336831255,1725196956974,-551.11,0.00029315,15]
[336831256,1725196957016,-500.0,0.00029315,15]
[336831257,1725196957059,-1020.74,0.00029315,15]
[336831258,1725196957098,-500.0,0.00029315,15]
[336831259,1725196957138,-500.0,0.00029315,15]
[336831260,1725196957186,-500.0,0.00029315,15]
[336831261,1725196957228,-668.67,0.00029315,15]
[336831262,1725196957269,-500.0,0.00029315,15]
[336831263,1725196957308,-622.09,0.00029315,15]
[336831264,1725196957347,-926.65,0.00029315,15]
[336831265,1725196957388,-562.47,0.00029315,15]
[336831266,1725196957427,-151.0,0.00029315,7]
[336831267,1725196957470,-686.57,0.00029315,15]
[336831268,1725196957513,-520.01,0.00029315,15]
[336831269,1725196957556,-281.895372,0.00029315,7]
[336831270,1725196957599,-281.895372,0.00029315,7]
[336831271,1725196957642,-736.2,0.00029315,14]
[336831272,1725196957684,-500.0,0.00029315,15]
[336831273,1725196957726,-458.12226394,0.00029315,15]
[336831274,1725196957767,-306.708187,0.00029315,7]
[336831275,1725196957808,-500.0,0.00029315,7]
[336831276,1725196957849,-435.356635,0.00029315,7]
[336831277,1725196957894,-646.540324,0.00029315,7]
[336831278,1725196957937,-306.708187,0.00029315,7]
[336831279,1725196957976,-435.356635,0.00029315,7]
[336831280,1725196958017,-646.540324,0.00029315,7]
[336831281,1725196958057,-1081.1,0.00029315,15]
[336831282,1725196958114,-1433.05,0.00029315,15]
[336831283,1725196958157,-2532.21,0.00029315,15]
[336831284,1725196958198,-11724.87,0.00029315,8]
[336831285,1725196958240,-500.0,0.00029315,15]
[336831286,1725196958283,-802.07,0.00029315,15]
[336831287,1725196958326,-2462.33,0.00029315,15]
[336831288,1725196958370,-648.27,0.00029315,15]
[336831289,1725196958414,-431.48009117,0.00029315,15]
[336831290,1725196958462,-776.95,0.00029315,15]
[336831291,1725196958507,-1178.34,0.00029315,15]
[336831292,1725196958547,-1392.7,0.00029315,15]
[336831293,1725196958589,-2171.76,0.00029315,15]
[336831294,1725196958630,-507.68,0.00029315,15]
[336831295,1725196958673,-593.14,0.00029315,15]
[336831296,1725196958714,-950.08,0.00029315,15]
[336831297,1725196958757,-500.0,0.00029315,15]
[336831298,1725196958797,-2805.62,0.00029315,15]
[336831299,1725196958838,-1101.57,0.00029315,15]
[336831300,1725196958882,-717.46,0.00029315,15]
[336831301,1725196958935,-151.0,0.00029315,7]
[336831302,1725196958976,-151.0,0.00029315,7]
[336831303,1725196959015,-1526.8,0.00029315,15]
[336831304,1725196959055,-309.183729,0.00029315,7]
[336831305,1725196959094,-367.85134566,0.00029315,15]
[336831306,1725196959135,-309.183729,0.00029315,7]
[336831307,1725196959176,-500.0,0.00029315,15]
[336831308,1725196959216,-416.80447325,0.00029315,15]
[336831309,1725196959257,-500.0,0.00029315,15]
[336831310,1725196959298,-547.06,0.00029315,15]
[336831311,1725196959340,-9446.63,0.00029315,15]
[336831312,1725196959381,-6672.92,0.00029315,15]
[336831313,1725196959424,-151.0,0.00029315,7]
[336831314,1725196959475,-1623.27,0.00029315,15]
[336831315,1725196959527,-545.44,0.00029315,15]
[336831316,1725196959577,-500.0,0.00029589,15]
[336831317,1725196959623,-500.0,0.00029589,15]
[336831318,1725196959670,-662.37,0.00029589,15]
[336831319,1725196959715,-551.14,0.00029589,15]
[336831320,1725196959761,-500.0,0.00029589,15]
[336831321,1725196959806,-630.21,0.00029589,15]
[336831322,1725196959851,-500.0,0.00029589,15]
[336831323,1725196959901,-546.32,0.00029589,15]
[336831324,1725196959946,-560.51,0.00029589,15]
[336831325,1725196959993,-600.36,0.00029589,15]
[336831326,1725196960038,-151.0,0.00029589,7]
[336831327,1725196960088,-151.0,0.00029589,7]
[336831328,1725196960135,-1645.96,0.00029589,15]
[336831329,1725196960184,-151.0,0.00029589,7]
[336831330,1725196960230,-152.112969,0.00029589,7]
[336831331,1725196960276,-151.0,0.00029589,7]
[336831332,1725196960319,-500.0,0.00029589,7]
[336831333,1725196960363,-500.0,0.00029589,7]
[336831334,1725196960407,-849.07,0.00029589,15]